[Event "2. Itzehoer Schach Open"]
[Site "Itzehoe, Germany"]
[Date "2023.04.29"]
[Round "2.35"]
[White "Neffgen, Klaus"]
[Black "Lieb, Max"]
[Result "1-0"]
[TimeControl "90 min / 40 Züge + 30 min + 30 Sek pro Zug"]
[WhiteElo "1533"]
[BlackElo "1333"]

1. d4 {[%clk 01:30:59]} {[%emt 00:00:01]} c5 {[%clk 01:30:51]} {[%emt
00:00:09]} 2. d5 {[%clk 01:31:22]} {[%emt 00:00:07]} Nf6 {[%clk 01:31:15]}
{[%emt 00:00:06]} 3. c4 {[%clk 01:31:23]} {[%emt 00:00:29]} b5 {[%clk
01:31:36]} {[%emt 00:00:09]} 4. Nc3 {[%clk 01:30:46]} {[%emt 00:01:07]} b4
{[%clk 01:31:49]} {[%emt 00:00:17]} 5. Nb1 {[%clk 01:30:07]} {[%emt 00:01:10]}
d6 {[%clk 01:32:10]} {[%emt 00:00:08]} 6. Nf3 {[%clk 01:30:00]} {[%emt
00:00:37]} g6 {[%clk 01:32:31]} {[%emt 00:00:09]} 7. g3 {[%clk 01:28:03]}
{[%emt 00:02:27]} Bg7 {[%clk 01:32:50]} {[%emt 00:00:11]} 8. Bg2 {[%clk
01:28:25]} {[%emt 00:00:08]} Ba6 {[%clk 01:33:08]} {[%emt 00:00:12]} 9. Nbd2
{[%clk 01:28:36]} {[%emt 00:00:19]} Nfd7 {[%clk 01:33:25]} {[%emt 00:00:12]} 10.
Rb1 {[%clk 01:27:55]} {[%emt 00:01:11]} Nb6 {[%clk 01:33:42]} {[%emt 00:00:13]}
11. b3 {[%clk 01:28:01]} {[%emt 00:00:24]} O-O {[%clk 01:33:56]} {[%emt
00:00:16]} 12. O-O {[%emt 00:00:05]} e6 {[%emt 00:01:06]} 13. dxe6 {[%clk
01:26:49]} {[%emt 00:00:31]} fxe6 {[%clk 01:34:05]} {[%emt 00:00:21]} 14. Ng5
{[%clk 01:22:04]} {[%emt 00:05:15]} Qxg5 {[%clk 01:32:26]} {[%emt 00:02:09]} 15.
Bxa8 {[%clk 01:22:22]} {[%emt 00:00:12]} d5 {[%clk 01:32:33]} {[%emt 00:00:24]}
16. cxd5 {[%clk 01:22:25]} {[%emt 00:00:27]} exd5 {[%clk 01:32:42]} {[%emt
00:00:21]} 17. Nf3 {[%clk 01:21:01]} {[%emt 00:01:55]} Qf5 {[%clk 01:29:51]}
{[%emt 00:03:20]} 18. Bb2 {[%clk 01:18:12]} {[%emt 00:03:19]} Nxa8 {[%clk
01:30:01]} {[%emt 00:00:20]} 19. Bxg7 {[%clk 01:17:47]} {[%emt 00:00:55]} Kxg7
{[%clk 01:30:19]} {[%emt 00:00:11]} 20. Qd2 {[%clk 01:13:39]} {[%emt 00:04:39]}
Bxe2 {[%clk 01:30:18]} {[%emt 00:00:31]} 21. Nh4 {[%clk 01:12:37]} {[%emt
00:01:33]} Qg4 {[%clk 01:27:27]} {[%emt 00:03:21]} 22. Rfe1 {[%clk 01:11:36]}
{[%emt 00:01:30]} Bf3 {[%clk 01:23:51]} {[%emt 00:04:06]} 23. Re7+ {[%clk
01:08:13]} {[%emt 00:03:53]} Kg8 {[%clk 01:23:00]} {[%emt 00:01:22]} 24. Qh6
{[%clk 01:07:20]} {[%emt 00:01:22]} Rf7 {[%clk 01:22:35]} {[%emt 00:00:55]} 25.
Re8+ {[%clk 01:07:30]} {[%emt 00:00:21]} 1-0

[Event "2. Itzehoer Schach Open"]
[Site "Itzehoe, Germany"]
[Date "2023.04.29"]
[Round "2.20"]
[White "Wohlrabe, Joerg"]
[Black "Carsten, Juergen"]
[Result "0-1"]
[TimeControl "90 min / 40 Züge + 30 min + 30 Sek pro Zug"]
[WhiteElo "1635"]
[BlackElo "1780"]

1. e4 {[%clk 01:30:57]} {[%emt 00:00:02]} e5 {[%clk 01:30:50]} {[%emt
00:00:11]} 2. Nf3 {[%clk 01:31:21]} {[%emt 00:00:05]} Nc6 {[%clk 01:30:37]}
{[%emt 00:00:44]} 3. d4 {[%clk 01:31:41]} {[%emt 00:00:09]} exd4 {[%clk
01:29:45]} {[%emt 00:01:22]} 4. Nxd4 {[%clk 01:32:03]} {[%emt 00:00:08]} Nxd4
{[%clk 01:28:26]} {[%emt 00:01:50]} 5. Qxd4 {[%clk 01:32:26]} {[%emt 00:00:06]}
d6 {[%clk 01:28:24]} {[%emt 00:00:33]} 6. Bc4 {[%clk 01:31:59]} {[%emt
00:00:55]} Be6 {[%clk 01:27:01]} {[%emt 00:01:54]} 7. Bxe6 {[%clk 01:31:23]}
{[%emt 00:01:06]} fxe6 {[%clk 01:27:08]} {[%emt 00:00:24]} 8. Qb4 {[%clk
01:28:27]} {[%emt 00:03:25]} Qc8 {[%clk 01:26:17]} {[%emt 00:01:21]} 9. O-O
{[%clk 01:27:07]} {[%emt 00:01:50]} Nf6 {[%clk 01:23:46]} {[%emt 00:03:02]} 10.
Qe1 {[%clk 01:17:07]} {[%emt 00:10:28]} e5 {[%clk 01:19:41]} {[%emt 00:04:36]}
11. Nc3 {[%clk 01:15:51]} {[%emt 00:01:44]} c6 {[%clk 01:19:17]} {[%emt
00:00:56]} 12. Bg5 {[%clk 01:14:54]} {[%emt 00:01:26]} Qe6 {[%clk 01:16:50]}
{[%emt 00:02:57]} 13. a3 {[%clk 01:11:33]} {[%emt 00:03:51]} Be7 {[%clk
01:14:42]} {[%emt 00:02:38]} 14. b4 {[%clk 01:10:19]} {[%emt 00:01:45]} O-O
{[%clk 01:11:22]} {[%emt 00:03:50]} 15. Rd1 {[%clk 01:09:20]} {[%emt 00:01:28]}
Rf7 {[%clk 01:04:11]} {[%emt 00:07:42]} 16. f3 {[%clk 01:06:46]} {[%emt
00:03:03]} Bd8 {[%clk 01:01:00]} {[%emt 00:03:42]} 17. Be3 {[%clk 01:03:57]}
{[%emt 00:03:18]} Nh5 {[%clk 00:58:23]} {[%emt 00:03:07]} 18. Qd2 {[%clk
01:01:38]} {[%emt 00:02:48]} Bc7 {[%clk 00:55:01]} {[%emt 00:03:54]} 19. Ne2
{[%clk 00:58:00]} {[%emt 00:04:06]} b6 {[%emt 00:14:11]} 20. g4 {[%clk
00:50:48]} Nf6 {[%clk 00:45:55]} {[%emt 00:03:38]} 21. Ng3 {[%clk 00:49:33]}
{[%emt 00:01:44]} g6 {[%clk 00:43:30]} {[%emt 00:02:56]} 22. h4 {[%clk
00:42:15]} {[%emt 00:07:48]} Rd8 {[%clk 00:38:37]} {[%emt 00:05:23]} 23. Qe2
{[%clk 00:37:35]} {[%emt 00:05:09]} d5 {[%clk 00:35:27]} {[%emt 00:03:41]} 24.
Bg5 {[%clk 00:36:09]} {[%emt 00:01:55]} Rc8 {[%clk 00:30:11]} {[%emt 00:05:47]}
25. Bxf6 {[%clk 00:29:42]} {[%emt 00:06:57]} Rxf6 {[%clk 00:25:41]} {[%emt
00:05:00]} 26. exd5 {[%clk 00:29:38]} {[%emt 00:00:33]} cxd5 {[%clk 00:25:36]}
{[%emt 00:00:36]} 27. Qa6 {[%clk 00:29:53]} {[%emt 00:00:15]} e4 {[%clk
00:22:26]} {[%emt 00:03:40]} 28. fxe4 {[%clk 00:11:44]} {[%emt 00:18:39]} Rxf1+
{[%clk 00:20:45]} {[%emt 00:02:11]} 29. Nxf1 {[%clk 00:10:56]} {[%emt
00:01:18]} Qxg4+ {[%clk 00:20:55]} {[%emt 00:00:20]} 30. Kf2 {[%clk 00:11:05]}
{[%emt 00:00:20]} Rf8+ {[%clk 00:19:47]} {[%emt 00:01:39]} 31. Ke1 {[%clk
00:09:33]} {[%emt 00:02:02]} Qxe4+ {[%clk 00:16:14]} {[%emt 00:04:03]} 32. Kd2
{[%clk 00:08:46]} {[%emt 00:01:17]} Rf2+ {[%clk 00:14:40]} {[%emt 00:02:03]}
0-1

[Event "2. Itzehoer Schach Open"]
[Site "Itzehoe, Germany"]
[Date "2023.04.29"]
[Round "2.7"]
[White "Hielscher, Ursula"]
[Black "Pitic, Jasmin"]
[Result "0-1"]
[TimeControl "90 min / 40 Züge + 30 min + 30 Sek pro Zug"]
[WhiteElo "1702"]
[BlackElo "2067"]

1. d4 {[%clk 01:30:57]} {[%emt 00:00:02]} Nf6 {[%clk 01:30:41]} {[%emt
00:00:20]} 2. c4 {[%clk 01:31:23]} {[%emt 00:00:05]} e6 {[%clk 01:31:06]}
{[%emt 00:00:04]} 3. Nc3 {[%clk 01:31:49]} {[%emt 00:00:04]} Bb4 {[%clk
01:31:13]} {[%emt 00:00:23]} 4. Bd2 {[%clk 01:32:08]} {[%emt 00:00:12]} O-O
{[%clk 01:30:59]} {[%emt 00:00:43]} 5. e3 {[%clk 01:32:27]} {[%emt 00:00:11]}
d5 {[%clk 01:28:49]} {[%emt 00:02:40]} 6. Nf3 {[%clk 01:32:24]} {[%emt
00:00:32]} a6 {[%clk 01:26:57]} {[%emt 00:02:23]} 7. Be2 {[%clk 01:30:57]}
{[%emt 00:01:57]} dxc4 {[%clk 01:26:50]} {[%emt 00:00:38]} 8. Bxc4 {[%clk
01:31:20]} {[%emt 00:00:06]} b5 {[%clk 01:26:27]} {[%emt 00:00:53]} 9. Bd3
{[%clk 01:31:20]} {[%emt 00:00:30]} Be7 {[%clk 01:26:02]} {[%emt 00:00:55]} 10.
O-O {[%clk 01:31:37]} {[%emt 00:00:14]} Bb7 {[%clk 01:26:15]} {[%emt 00:00:16]}
11. Rc1 {[%clk 01:31:12]} {[%emt 00:00:55]} c5 {[%clk 01:25:55]} {[%emt
00:00:50]} 12. Be2 {[%clk 01:28:05]} {[%emt 00:03:37]} Nbd7 {[%clk 01:24:36]}
{[%emt 00:01:49]} 13. dxc5 {[%clk 01:24:15]} {[%emt 00:04:20]} Nxc5 {[%clk
01:24:08]} {[%emt 00:00:59]} 14. Nd4 {[%clk 01:23:29]} {[%emt 00:01:15]} Qb6
{[%clk 01:19:34]} {[%emt 00:05:04]} 15. Bf3 {[%clk 01:15:16]} {[%emt 00:08:43]}
Nce4 {[%clk 01:15:40]} {[%emt 00:04:24]} 16. Nxe4 {[%clk 01:13:41]} {[%emt
00:02:06]} Nxe4 {[%clk 01:15:56]} {[%emt 00:00:14]} 17. Be1 {[%clk 01:11:49]}
{[%emt 00:02:21]} Rfd8 {[%clk 01:11:43]} {[%emt 00:04:43]} 18. Qc2 {[%clk
01:09:13]} {[%emt 00:03:06]} Rac8 {[%clk 01:09:41]} {[%emt 00:02:31]} 19. Qb1
{[%clk 01:07:31]} {[%emt 00:02:12]} Rxc1 {[%clk 01:08:14]} {[%emt 00:01:58]} 20.
Qxc1 {[%clk 01:07:59]} {[%emt 00:00:02]} Bf6 {[%clk 01:07:12]} {[%emt
00:01:32]} 21. Nb3 {[%clk 01:07:18]} {[%emt 00:01:11]} Rc8 {[%clk 01:03:36]}
{[%emt 00:04:07]} 22. Qb1 {[%clk 01:06:59]} {[%emt 00:00:49]} Nd6 {[%clk
01:02:57]} {[%emt 00:01:08]} 23. Bxb7 {[%clk 01:06:25]} {[%emt 00:01:03]} Qxb7
{[%clk 01:03:17]} {[%emt 00:00:11]} 24. Bb4 {[%clk 01:03:13]} {[%emt 00:03:42]}
Nc4 {[%clk 01:00:03]} {[%emt 00:03:44]} 25. Na5 {[%clk 00:56:13]} {[%emt
00:07:30]} Nxa5 {[%clk 00:50:09]} {[%emt 00:10:24]} 26. Bxa5 {[%clk 00:56:40]}
{[%emt 00:00:03]} Qc6 {[%clk 00:49:48]} {[%emt 00:00:50]} 27. Bd2 {[%clk
00:54:51]} {[%emt 00:02:20]} Qc2 {[%clk 00:47:10]} {[%emt 00:03:08]} 28. Qxc2
{[%clk 00:55:10]} {[%emt 00:00:11]} Rxc2 {[%clk 00:47:39]} {[%emt 00:00:02]} 29.
Bc3 {[%clk 00:52:04]} {[%emt 00:03:35]} Bxc3 {[%clk 00:47:42]} {[%emt
00:00:26]} 30. bxc3 {[%clk 00:52:29]} {[%emt 00:00:05]} Rxc3 {[%clk 00:47:16]}
{[%emt 00:00:57]} 31. Rb1 {[%clk 00:52:21]} {[%emt 00:00:38]} Rc2 {[%clk
00:45:00]} {[%emt 00:02:46]} 32. a4 {[%clk 00:51:44]} {[%emt 00:01:07]} b4
{[%clk 00:45:18]} {[%emt 00:00:12]} 33. a5 {[%clk 00:51:51]} {[%emt 00:00:24]}
b3 {[%clk 00:45:09]} {[%emt 00:00:38]} 34. g3 {[%clk 00:51:53]} {[%emt
00:00:28]} b2 {[%clk 00:45:20]} {[%emt 00:00:19]} 35. Kg2 {[%clk 00:52:19]}
{[%emt 00:00:05]} Kf8 {[%clk 00:44:51]} {[%emt 00:00:58]} 36. Kf3 {[%clk
00:52:20]} {[%emt 00:00:28]} Ke7 {[%clk 00:45:00]} {[%emt 00:00:22]} 37. e4
{[%clk 00:52:05]} {[%emt 00:00:45]} Kd6 {[%clk 00:44:57]} {[%emt 00:00:33]} 38.
Ke3 {[%clk 00:52:01]} {[%emt 00:00:34]} Kc5 {[%clk 00:44:56]} {[%emt 00:00:31]}
0-1

[Event "2. Itzehoer Schach Open"]
[Site "Itzehoe, Germany"]
[Date "2023.04.29"]
[Round "2.31"]
[White "Graf, David"]
[Black "Schindehuette, Frank"]
[Result "1-0"]
[TimeControl "90 min / 40 Züge + 30 min + 30 Sek pro Zug"]
[WhiteElo "1429"]
[BlackElo "1575"]

1. e4 {[%clk 01:30:57]} {[%emt 00:00:02]} d5 {[%clk 01:30:57]} {[%emt
00:00:04]} 2. exd5 {[%clk 01:31:03]} {[%emt 00:00:24]} Nf6 {[%clk 01:31:21]}
{[%emt 00:00:05]} 3. d4 {[%clk 01:30:32]} {[%emt 00:01:00]} Bf5 {[%clk
01:31:46]} {[%emt 00:00:06]} 4. Bb5+ {[%clk 01:30:07]} {[%emt 00:00:56]} Nbd7
{[%clk 01:31:13]} {[%emt 00:01:03]} 5. Nc3 {[%clk 01:29:27]} {[%emt 00:01:09]}
a6 {[%clk 01:31:29]} {[%emt 00:00:14]} 6. Ba4 {[%clk 01:29:48]} {[%emt
00:00:09]} b5 {[%clk 01:31:38]} {[%emt 00:00:21]} 7. Bb3 {[%clk 01:30:01]}
{[%emt 00:00:17]} Nb6 {[%clk 01:30:00]} {[%emt 00:02:08]} 8. Nf3 {[%clk
01:29:38]} {[%emt 00:00:53]} Nbxd5 {[%clk 01:27:52]} {[%emt 00:02:38]} 9. Nxd5
{[%clk 01:29:57]} {[%emt 00:00:11]} Nxd5 {[%clk 01:28:10]} {[%emt 00:00:12]} 10.
O-O {[%clk 01:29:48]} {[%emt 00:00:39]} e6 {[%clk 01:24:26]} {[%emt 00:04:15]}
11. c4 {[%clk 01:28:20]} {[%emt 00:01:57]} Nb4 {[%clk 01:21:54]} {[%emt
00:03:02]} 12. d5 {[%clk 01:06:55]} {[%emt 00:21:54]} exd5 {[%clk 01:17:25]}
{[%emt 00:05:00]} 13. Re1+ {[%clk 01:01:32]} {[%emt 00:05:53]} Be7 {[%clk
01:17:06]} {[%emt 00:00:49]} 14. Nd4 {[%clk 00:41:32]} {[%emt 00:20:30]} Bg6
{[%clk 01:08:38]} {[%emt 00:08:59]} 15. cxd5 {[%clk 00:41:36]} {[%emt
00:00:26]} O-O {[%clk 01:05:31]} {[%emt 00:03:37]} 16. a3 {[%clk 00:40:45]}
{[%emt 00:01:22]} c5 {[%clk 00:47:57]} {[%emt 00:18:04]} 17. axb4 {[%clk
00:30:12]} {[%emt 00:11:03]} cxd4 {[%clk 00:48:02]} {[%emt 00:00:26]} 18. Qxd4
{[%clk 00:28:03]} {[%emt 00:02:38]} Bf6 {[%clk 00:47:23]} {[%emt 00:01:08]} 19.
Qd1 {[%clk 00:21:53]} {[%emt 00:06:40]} Qd6 {[%clk 00:47:22]} {[%emt 00:00:32]}
20. Qe2 {[%clk 00:13:43]} {[%emt 00:08:40]} Qxb4 {[%clk 00:46:21]} {[%emt
00:01:31]} 21. Ba2 {[%clk 00:12:40]} {[%emt 00:01:34]} Rfd8 {[%clk 00:41:36]}
{[%emt 00:05:14]} 22. Bb1 {[%clk 00:06:56]} {[%emt 00:06:14]} Bxb1 {[%clk
00:33:32]} {[%emt 00:08:34]} 23. Rxb1 {[%clk 00:07:20]} {[%emt 00:00:05]} Kf8
{[%clk 00:32:25]} {[%emt 00:01:37]} 24. Bd2 {[%clk 00:06:29]} {[%emt 00:01:21]}
Qd6 {[%clk 00:31:01]} {[%emt 00:01:54]} 25. Qe4 {[%clk 00:06:09]} {[%emt
00:00:51]} Kg8 {[%clk 00:26:28]} {[%emt 00:05:03]} 26. Ba5 {[%clk 00:05:08]}
{[%emt 00:01:31]} Rf8 {[%clk 00:25:34]} {[%emt 00:01:24]} 27. Bb4 {[%clk
00:05:21]} {[%emt 00:00:17]} Qd7 {[%clk 00:23:21]} {[%emt 00:02:42]} 28. Bxf8
{[%clk 00:05:27]} {[%emt 00:00:24]} Rxf8 {[%clk 00:23:29]} {[%emt 00:00:22]} 29.
b3 {[%clk 00:03:49]} {[%emt 00:02:08]} Qd6 {[%clk 00:22:12]} {[%emt 00:01:46]}
30. Rbc1 {[%clk 00:03:51]} {[%emt 00:00:29]} a5 {[%clk 00:21:18]} {[%emt
00:01:24]} 31. Rc6 {[%clk 00:03:53]} {[%emt 00:00:28]} Qa3 {[%clk 00:20:56]}
{[%emt 00:00:51]} 32. d6 {[%clk 00:03:35]} {[%emt 00:00:49]} g6 {[%clk
00:18:08]} {[%emt 00:03:18]} 33. d7 {[%clk 00:03:48]} {[%emt 00:00:17]} Kg7
{[%clk 00:17:30]} {[%emt 00:01:08]} 34. Rc8 {[%clk 00:03:50]} {[%emt 00:00:29]}
Qd6 {[%clk 00:16:53]} {[%emt 00:01:05]} 35. Rxf8 {[%clk 00:03:46]} {[%emt
00:00:36]} Kxf8 {[%clk 00:15:38]} {[%emt 00:01:45]} 36. Qe8+ {[%clk 00:03:14]}
{[%emt 00:01:02]} Kg7 {[%clk 00:15:57]} {[%emt 00:00:10]} 37. g3 {[%clk
00:01:50]} {[%emt 00:01:54]} a4 {[%clk 00:16:06]} {[%emt 00:00:21]} 38. bxa4
{[%clk 00:02:03]} {[%emt 00:00:18]} bxa4 {[%clk 00:16:30]} {[%emt 00:00:06]} 39.
d8=Q {[%emt 00:01:32]} Qxd8 {[%clk 00:16:01]} {[%emt 00:00:58]} 40. Qxd8 {[%clk
00:01:15]} {[%emt 00:00:17]} Bxd8 {[%clk 00:16:25]} {[%emt 00:00:06]} 41. Ra1
{[%clk 00:01:36]} {[%emt 00:00:09]} h5 {[%clk 00:12:45]} {[%emt 00:01:13]} 42.
Rxa4 {[%clk 00:02:01]} {[%emt 00:03:02]} Kh6 {[%clk 00:12:51]} {[%emt
00:00:23]} 43. Ra8 {[%clk 00:01:31]} {[%emt 00:01:01]} Bb6 {[%clk 00:13:01]}
{[%emt 00:00:20]} 44. Ra6 {[%clk 00:01:57]} {[%emt 00:00:04]} Bd4 {[%clk
00:13:18]} {[%emt 00:00:12]} 45. Ra5 {[%clk 00:02:19]} {[%emt 00:00:09]} f6
{[%clk 00:13:21]} {[%emt 00:00:27]} 46. Kg2 {[%clk 00:02:45]} {[%emt 00:00:04]}
g5 {[%clk 00:13:30]} {[%emt 00:00:21]} 47. h3 {[%clk 00:02:26]} {[%emt
00:00:48]} Kg6 {[%clk 00:13:40]} {[%emt 00:00:21]} 48. Rb5 {[%clk 00:02:09]}
{[%emt 00:00:47]} Be5 {[%clk 00:13:50]} {[%emt 00:00:19]} 49. Kf3 {[%clk
00:01:41]} {[%emt 00:00:57]} Kf5 {[%clk 00:13:36]} {[%emt 00:00:43]} 50. g4+
{[%clk 00:01:35]} {[%emt 00:00:38]} hxg4+ {[%clk 00:13:52]} {[%emt 00:00:14]}
51. hxg4+ {[%clk 00:01:59]} {[%emt 00:00:06]} Kg6 {[%clk 00:14:13]} {[%emt
00:00:09]} 52. Ke4 {[%clk 00:02:01]} {[%emt 00:00:28]} Bh2 {[%clk 00:13:02]}
{[%emt 00:01:41]} 53. f3 {[%clk 00:01:13]} {[%emt 00:01:19]} Bg3 {[%clk
00:12:54]} {[%emt 00:00:38]} 54. Rf5 {[%clk 00:30:23]} {[%emt 00:01:20]} Be1
{[%clk 00:41:47]} {[%emt 00:01:36]} 55. Kd5 {[%clk 00:30:45]} {[%emt 00:00:09]}
Bc3 {[%clk 00:41:55]} {[%emt 00:00:20]} 56. Ke6 {[%clk 00:31:07]} {[%emt
00:00:10]} Bb2 {[%clk 00:41:58]} {[%emt 00:00:27]} 57. Rb5 {[%clk 00:30:31]}
{[%emt 00:01:06]} Bc3 {[%clk 00:42:17]} {[%emt 00:00:11]} 58. Ke7 {[%clk
00:29:39]} {[%emt 00:01:21]} Bd4 {[%clk 00:42:30]} {[%emt 00:00:17]} 59. Kf8
{[%clk 00:29:44]} {[%emt 00:00:26]} Be5 {[%clk 00:42:05]} {[%emt 00:00:55]} 60.
Rd5 {[%clk 00:29:13]} {[%emt 00:01:00]} Bc3 {[%clk 00:41:44]} {[%emt 00:00:52]}
61. Kg8 {[%clk 00:28:50]} {[%emt 00:00:53]} Bb2 {[%clk 00:41:39]} {[%emt
00:00:35]} 62. Rd7 {[%clk 00:28:55]} {[%emt 00:00:25]} Bc3 {[%clk 00:41:34]}
{[%emt 00:00:34]} 63. Rg7+ {[%clk 00:28:34]} {[%emt 00:00:51]} Kh6 {[%clk
00:41:59]} {[%emt 00:00:06]} 64. Kf7 {[%clk 00:28:26]} {[%emt 00:00:38]} Bd4
{[%clk 00:41:37]} {[%emt 00:00:52]} 65. Rg8 {[%clk 00:28:04]} {[%emt 00:00:52]}
Kh7 {[%clk 00:41:34]} {[%emt 00:00:33]} 66. Ra8 {[%clk 00:28:24]} {[%emt
00:00:10]} Be5 {[%clk 00:38:25]} {[%emt 00:03:39]} 67. Rd8 {[%clk 00:28:32]}
{[%emt 00:00:22]} Bg3 {[%clk 00:36:19]} {[%emt 00:02:36]} 68. Rd1 {[%clk
00:28:24]} {[%emt 00:00:37]} Bh4 {[%clk 00:36:40]} {[%emt 00:00:09]} 69. Kxf6
{[%clk 00:28:24]} {[%emt 00:00:30]} 1-0

[Event "2. Itzehoer Schach Open"]
[Site "Itzehoe, Germany"]
[Date "2023.04.29"]
[Round "2.4"]
[White "Wulf von Moers, Jens"]
[Black "Nahnsen, Kenneth"]
[Result "1/2-1/2"]
[TimeControl "90 min / 40 Züge + 30 min + 30 Sek pro Zug"]
[WhiteElo "2148"]
[BlackElo "2021"]

1. e4 {[%clk 01:30:53]} {[%emt 00:00:06]} e5 {[%clk 01:30:55]} {[%emt
00:00:06]} 2. Nf3 {[%clk 01:31:13]} {[%emt 00:00:10]} Nc6 {[%clk 01:31:21]}
{[%emt 00:00:04]} 3. d4 {[%clk 01:31:31]} {[%emt 00:00:10]} exd4 {[%clk
01:31:45]} {[%emt 00:00:07]} 4. Bc4 {[%clk 01:31:51]} {[%emt 00:00:09]} Nf6
{[%clk 01:31:53]} {[%emt 00:00:23]} 5. e5 {[%clk 01:31:57]} {[%emt 00:00:23]}
d5 {[%clk 01:32:06]} {[%emt 00:00:18]} 6. Bb5 {[%clk 01:32:11]} {[%emt
00:00:16]} Ne4 {[%clk 01:32:31]} {[%emt 00:00:06]} 7. Nxd4 {[%clk 01:32:29]}
{[%emt 00:00:12]} Bc5 {[%clk 01:31:49]} {[%emt 00:01:12]} 8. Be3 {[%clk
01:32:01]} {[%emt 00:00:57]} O-O {[%clk 01:29:42]} {[%emt 00:02:37]} 9. Nxc6
{[%clk 01:30:47]} {[%emt 00:01:43]} bxc6 {[%clk 01:26:37]} {[%emt 00:03:37]} 10.
Bxc5 {[%clk 01:30:55]} {[%emt 00:00:22]} Nxc5 {[%clk 01:25:27]} {[%emt
00:01:40]} 11. Bxc6 {[%clk 01:30:03]} {[%emt 00:01:21]} Rb8 {[%clk 01:24:20]}
{[%emt 00:01:38]} 12. O-O {[%clk 01:23:30]} {[%emt 00:07:02]} Be6 {[%clk
01:21:44]} {[%emt 00:03:07]} 13. Nc3 {[%clk 01:20:27]} {[%emt 00:03:32]} d4
{[%clk 01:16:22]} {[%emt 00:05:53]} 14. Ne4 {[%clk 01:13:18]} {[%emt 00:07:38]}
Nxe4 {[%clk 01:14:55]} {[%emt 00:01:58]} 15. Bxe4 {[%clk 01:13:38]} {[%emt
00:00:10]} Rxb2 {[%clk 01:12:56]} {[%emt 00:02:29]} 16. Qd3 {[%clk 01:11:47]}
{[%emt 00:02:20]} h6 {[%clk 01:11:44]} {[%emt 00:01:43]} 17. f4 {[%clk
01:08:23]} {[%emt 00:03:54]} f5 {[%clk 01:10:19]} {[%emt 00:01:55]} 18. exf6
{[%clk 01:04:41]} {[%emt 00:04:13]} Rxf6 {[%clk 01:07:27]} {[%emt 00:03:23]} 19.
Qa3 {[%clk 00:54:17]} {[%emt 00:10:53]} Qb8 {[%clk 01:05:14]} {[%emt 00:02:43]}
20. Bd3 {[%clk 00:54:32]} {[%emt 00:00:15]} Rb4 {[%clk 01:02:37]} {[%emt
00:03:07]} 21. Rae1 {[%clk 00:53:49]} {[%emt 00:01:13]} c5 {[%clk 00:56:42]}
{[%emt 00:06:25]} 22. c3 {[%clk 00:50:26]} {[%emt 00:03:53]} dxc3 {[%clk
00:55:06]} {[%emt 00:02:06]} 23. Qxc3 {[%clk 00:50:46]} {[%emt 00:00:09]} Rbxf4
{[%clk 00:53:10]} {[%emt 00:02:26]} 24. Rxf4 {[%clk 00:48:44]} {[%emt
00:02:32]} Qxf4 {[%clk 00:51:48]} {[%emt 00:01:52]} 25. Qxc5 {[%clk 00:41:58]}
{[%emt 00:07:17]} Qd2 {[%clk 00:49:13]} {[%emt 00:03:05]} 26. Qe3 {[%clk
00:42:18]} {[%emt 00:00:09]} Qxe3+ {[%clk 00:49:22]} {[%emt 00:00:22]} 27. Rxe3
{[%clk 00:42:43]} {[%emt 00:00:05]} Bxa2 {[%clk 00:48:42]} {[%emt 00:01:11]}
1/2-1/2